bitfinex/quotes_BTCUSD_20220207
["timestamp","ask_amount","ask_price","bid_price","bid_amount"]
[1644215387033,0.40231689,42786.0,42782.0,0.00070099]
[1644215387237,0.55231689,42786.0,42779.0,0.1]
[1644215387433,0.55231689,42786.0,42782.0,0.00070099]
[1644215387631,0.069952,42785.0,42782.0,0.00070099]
[1644215387833,0.2522917,42784.0,42782.0,0.00070099]
[1644215388132,0.38280914,42783.0,42782.0,0.00070099]
[1644215388334,0.43280914,42783.0,42782.0,0.00070099]
[1644215388533,0.43280914,42783.0,42779.0,0.1]
[1644215388736,0.43280914,42783.0,42780.0,0.000701]
[1644215389782,0.36285714,42783.0,42779.0,0.1]
[1644215389985,0.27414446,42786.0,42779.0,0.10070101]
[1644215390184,0.23,42787.0,42782.0,0.20012857]
[1644215390583,0.005,42786.0,42783.0,0.20012857]
[1644215391785,0.005,42786.0,42785.0,0.05]
[1644215391985,0.00146476,42786.0,42785.0,0.05]
[1644215392384,0.23,42787.0,42784.0,0.82380604]
[1644215392585,0.23,42787.0,42786.0,0.20009001]
[1644215393085,0.23,42787.0,42785.0,0.016]
[1644215393332,0.23,42787.0,42786.0,0.05]
[1644215394632,0.235,42787.0,42786.0,0.064]
[1644215395032,0.235,42787.0,42786.0,0.014]
[1644215395932,0.235,42787.0,42785.0,0.2501924]
[1644215395933,0.23,42787.0,42785.0,0.2501924]
[1644215396532,0.237,42787.0,42785.0,0.2641924]
[1644215397781,0.23,42787.0,42786.0,0.2501924]
[1644215398382,0.23,42787.0,42786.0,0.3001924]
[1644215398581,0.236,42787.0,42786.0,0.3171924]
[1644215399386,0.236,42787.0,42786.0,0.2671924]
[1644215399582,0.236,42787.0,42786.0,0.3171924]
[1644215400083,0.236,42787.0,42786.0,0.2671924]
[1644215400283,0.236,42787.0,42786.0,0.3171924]
[1644215400482,0.236,42787.0,42786.0,0.3001924]
[1644215400483,0.23,42787.0,42786.0,0.3001924]
[1644215400736,0.255,42787.0,42786.0,0.05]
[1644215400935,0.26532215,42795.0,42786.0,1.05]
[1644215401133,0.05,42794.0,42786.0,1.05]
[1644215401335,0.36532215,42795.0,42789.0,0.20011435]
[1644215402134,0.36532215,42795.0,42790.0,0.20011435]
[1644215402534,0.36932215,42795.0,42790.0,0.20011435]
[1644215403534,0.104,42795.0,42790.0,0.20011435]
[1644215403735,0.004,42795.0,42790.0,0.20011435]
[1644215403936,0.1,42797.0,42790.0,0.20011435]
[1644215404135,0.05,42797.0,42790.0,0.20011435]
[1644215404337,0.00019142,42798.0,42790.0,0.20011435]
[1644215404586,0.23,42795.0,42790.0,0.20011435]
[1644215404781,0.53346214,42795.0,42789.0,0.20011435]
[1644215405482,0.28,42795.0,42789.0,0.20011435]
[1644215406081,0.28,42795.0,42790.0,0.20011435]
[1644215406683,0.56722963,42795.0,42790.0,0.20011435]
[1644215406886,0.317,42795.0,42792.0,0.25278303]
[1644215407282,0.317,42795.0,42790.0,0.20011435]
[1644215407884,0.28,42795.0,42790.0,0.20011435]
[1644215408084,0.54354449,42795.0,42790.0,0.20011435]
[1644215408330,0.54354449,42795.0,42790.0,0.47009434]
[1644215408629,0.57554449,42795.0,42790.0,0.47009434]
[1644215409030,0.57554449,42795.0,42792.0,0.0080438]
[1644215409232,0.57554449,42795.0,42794.0,0.00804383]
[1644215409430,0.312,42795.0,42794.0,0.00804383]
[1644215410532,0.28,42795.0,42794.0,0.00804383]
[1644215410732,0.312,42795.0,42794.0,0.00804383]
[1644215411337,0.35025123,42799.0,42794.0,0.00804383]
[1644215411541,0.00063788,42798.0,42796.0,0.05]
[1644215411738,0.00063788,42798.0,42797.0,0.677066]
[1644215412189,0.00063788,42798.0,42797.0,0.377066]
[1644215412386,0.00012691,42798.0,42797.0,0.33520044]
[1644215412586,2.483e-05,42800.0,42797.0,0.33520044]
[1644215412587,2.483e-05,42800.0,42797.0,0.277]
[1644215412787,0.00066274,42800.0,42797.0,0.52714294]
[1644215412987,0.00066274,42800.0,42797.0,0.59624294]
[1644215413187,0.00066274,42800.0,42798.0,0.20153899]
[1644215413388,0.00066274,42800.0,42798.0,0.27776692]
[1644215413588,0.00066274,42800.0,42798.0,0.5685943]
[1644215413790,2.483e-05,42800.0,42798.0,0.5685943]
[1644215413987,2.483e-05,42800.0,42798.0,0.20153899]
[1644215414187,2.483e-05,42800.0,42796.0,0.0468]
[1644215414386,2.483e-05,42800.0,42798.0,0.0080438]
[1644215414587,0.01202483,42800.0,42798.0,0.01608763]
[1644215414791,0.24202483,42800.0,42798.0,0.01608763]
[1644215415194,0.24202483,42800.0,42799.0,0.22586697]
[1644215415932,0.23002483,42800.0,42799.0,0.22586697]
[1644215416534,0.23002483,42800.0,42799.0,0.00076673]
[1644215416736,0.29202483,42800.0,42799.0,0.00076673]
[1644215417140,0.29202483,42800.0,42792.0,0.00067294]
[1644215417141,0.75,42799.0,42792.0,0.00067294]
[1644215417342,0.116752,42798.0,42786.0,1.0]
[1644215417542,0.116752,42798.0,42792.0,0.00067294]
[1644215417543,0.24665579,42797.0,42792.0,0.00067294]
[1644215417737,0.64574419,42793.0,42792.0,0.00067294]
[1644215417934,0.74254419,42793.0,42792.0,0.00067294]
[1644215418134,0.79254419,42793.0,42792.0,0.00067294]
[1644215418334,0.89254419,42793.0,42792.0,0.00067294]
[1644215418536,0.89254419,42793.0,42786.0,1.0]
[1644215418733,0.89254419,42793.0,42790.0,0.00066713]
[1644215418734,0.83459219,42793.0,42790.0,0.00066713]
[1644215418934,0.069952,42792.0,42790.0,0.00066713]
[1644215419135,0.116752,42792.0,42790.0,0.00066713]
[1644215419584,0.37165858,42791.0,42790.0,0.00066713]
[1644215419784,0.35170658,42791.0,42786.0,1.0]
[1644215419995,0.40170658,42791.0,42789.0,0.00066715]
[1644215420185,0.45411417,42790.0,42789.0,0.00066715]
[1644215420387,0.55411417,42790.0,42789.0,0.00066715]
[1644215420785,0.54911417,42790.0,42789.0,0.00066715]
[1644215420984,0.54911417,42790.0,42786.0,1.0]
[1644215421188,0.54911417,42790.0,42787.0,0.00066717]
[1644215422185,0.54911417,42790.0,42786.0,1.0]
[1644215422385,0.54911417,42790.0,42786.0,1.00066803]
[1644215422784,0.56211417,42790.0,42786.0,1.00066803]
[1644215423233,0.229752,42790.0,42786.0,1.00066803]
[1644215423435,0.0598,42790.0,42786.0,1.0]
[1644215423640,0.05544146,42790.0,42786.0,1.00066804]
[1644215423838,0.04244146,42790.0,42786.0,1.00066804]
[1644215424637,0.06844146,42790.0,42786.0,1.0]
[1644215424838,0.06844146,42790.0,42786.0,1.00066804]
[1644215425839,0.04244146,42790.0,42786.0,1.0]
[1644215426042,0.27244146,42790.0,42786.0,1.00066791]
[1644215426443,0.23,42790.0,42786.0,1.00066791]
[1644215426642,0.234,42790.0,42786.0,1.00366791]
[1644215427088,0.234,42790.0,42789.0,0.05]
[1644215427386,0.234,42790.0,42789.0,0.42960025]
[1644215427585,0.234,42790.0,42789.0,0.74861818]
[1644215427985,0.23,42790.0,42789.0,0.79861818]
[1644215428183,0.23,42790.0,42789.0,0.84861818]
[1644215428384,0.23,42790.0,42789.0,0.44861818]
[1644215428882,0.23,42790.0,42789.0,0.57461818]
[1644215429286,0.23,42790.0,42789.0,0.86268283]
[1644215429884,0.23,42790.0,42789.0,0.83668283]
[1644215430484,0.23,42790.0,42789.0,1.16374883]
[1644215430737,0.23,42790.0,42789.0,1.18674883]
[1644215430937,0.00028172,42799.0,42789.0,1.18674883]
[1644215430938,0.00028176,42798.0,42790.0,0.75]
[1644215431139,0.00028176,42799.0,42793.0,0.05]
[1644215431339,0.00028176,42802.0,42793.0,0.05]
[1644215431539,0.19331814,42803.0,42796.0,0.05]
[1644215431738,0.00028176,42802.0,42796.0,0.05]
[1644215431938,0.19331814,42803.0,42796.0,0.05]
[1644215432137,0.00028176,42802.0,42796.0,0.05]
[1644215432337,0.19331814,42803.0,42796.0,0.05]
[1644215432539,0.00028176,42802.0,42793.0,0.25153008]
[1644215432740,0.043,42802.0,42799.0,0.05]
[1644215433140,0.04315826,42802.0,42796.0,0.05]
[1644215433441,0.04315826,42802.0,42799.0,0.05]
[1644215433640,0.04315826,42802.0,42800.0,0.26615635]
[1644215434141,0.00028176,42807.0,42800.0,0.26615635]
[1644215434340,0.00015827,42803.0,42800.0,0.26615635]
[1644215434786,0.00015827,42803.0,42800.0,0.27615635]
[1644215435385,0.00028176,42806.0,42800.0,0.27615635]
[1644215435592,0.00052757,42804.0,42800.0,0.27615635]
[1644215435986,0.00052757,42804.0,42800.0,0.26615635]
[1644215436587,0.32723472,42808.0,42800.0,0.26615635]
[1644215436588,0.00028176,42806.0,42800.0,0.26615635]
[1644215436786,0.01388041,42804.0,42800.0,0.27415635]
[1644215436989,0.01359865,42804.0,42800.0,0.008]
[1644215437587,0.01359865,42804.0,42800.0,0.003]
[1644215437788,0.013,42804.0,42800.0,0.003]
[1644215437990,0.23059865,42804.0,42798.0,0.26229995]
[1644215438836,0.25359865,42804.0,42798.0,0.26429995]
[1644215439037,0.253,42804.0,42798.0,0.26429995]
[1644215439236,0.00018018,42803.0,42798.0,0.26429995]
[1644215439635,0.00046194,42803.0,42798.0,0.26429995]
[1644215439835,0.00018018,42803.0,42798.0,0.26429995]
[1644215440035,0.00046194,42803.0,42798.0,0.26229995]
[1644215440236,0.23,42804.0,42798.0,0.26229995]
[1644215440437,0.00051703,42803.0,42798.0,0.05]
[1644215440839,0.00070787,42803.0,42798.0,0.052]
[1644215441439,0.00028176,42803.0,42799.0,0.22637883]
[1644215441637,0.263,42804.0,42799.0,0.22637883]
[1644215442091,0.23,42804.0,42799.0,0.22637883]
[1644215442688,0.253,42804.0,42799.0,0.22637883]
[1644215443789,0.253,42804.0,42798.0,0.05]
[1644215443990,0.23019024,42804.0,42798.0,0.05]
[1644215444589,0.23019024,42804.0,42797.0,0.000342]
[1644215444789,0.25119024,42804.0,42797.0,0.000342]
[1644215445090,0.251,42804.0,42795.0,0.34789555]
[1644215445292,0.25163389,42804.0,42797.0,0.00070057]
[1644215445733,0.05,42803.0,42797.0,0.00070057]
[1644215445946,0.05028176,42803.0,42797.0,0.00070057]
[1644215446136,0.05028176,42803.0,42795.0,0.34789555]
[1644215446334,0.05028176,42803.0,42797.0,0.00070057]
[1644215446735,0.07028176,42803.0,42797.0,0.00070057]
[1644215447334,0.07028176,42803.0,42795.0,0.35289555]
[1644215447935,0.05028176,42803.0,42795.0,0.34789555]
[1644215448335,0.00028176,42803.0,42795.0,0.34789555]
[1644215448537,0.23019016,42804.0,42795.0,0.34789555]
[1644215448538,0.23,42804.0,42795.0,0.34789555]
[1644215448734,0.02028176,42803.0,42795.0,0.35289555]
[1644215448934,0.02,42803.0,42795.0,0.35289555]
[1644215449135,0.02028176,42803.0,42795.0,0.35289555]
[1644215449334,0.02028176,42803.0,42795.0,1.45289555]
[1644215449782,0.02028176,42803.0,42802.0,0.21730384]
[1644215449985,0.23063387,42804.0,42802.0,0.21730384]
[1644215450783,0.25663387,42804.0,42802.0,0.21730384]
[1644215450982,0.256,42804.0,42802.0,0.21730384]
[1644215451885,0.05,42803.0,42797.0,0.00069999]
[1644215452085,0.05,42803.0,42798.0,0.05]
[1644215452286,0.26914828,42801.0,42798.0,0.05]
[1644215452585,0.00028176,42802.0,42798.0,0.05]
[1644215452786,0.08128176,42803.0,42798.0,0.05]
[1644215452985,0.00028176,42802.0,42801.0,0.26721409]
[1644215453234,0.03128176,42803.0,42801.0,0.31721409]
[1644215453435,0.031,42803.0,42801.0,0.31221409]
[1644215454035,0.05,42803.0,42801.0,0.26221409]
[1644215454835,0.081,42803.0,42802.0,0.05]
[1644215455636,0.31408721,42803.0,42802.0,0.05]
[1644215456036,0.28308721,42803.0,42802.0,0.05]
[1644215456439,0.05,42803.0,42802.0,0.05]
[1644215456835,0.018,42803.0,42802.0,0.05]
[1644215458082,0.23,42804.0,42802.0,0.05]
[1644215458482,0.23,42804.0,42801.0,0.26221409]
[1644215458682,0.256,42804.0,42801.0,0.26221409]
[1644215459984,0.23,42804.0,42801.0,0.26221409]
[1644215460839,0.05,42803.0,42801.0,0.07934458]
[1644215461541,0.24628176,42804.0,42801.0,0.07934458]
[1644215461745,0.246,42804.0,42801.0,0.12934458]
[1644215461942,0.23,42804.0,42801.0,0.12934458]
[1644215462145,0.23063274,42804.0,42801.0,0.12934458]
[1644215462340,0.08836119,42804.0,42801.0,0.12934458]
[1644215462542,0.08836119,42804.0,42802.0,0.2883669]
[1644215462741,0.11536119,42804.0,42802.0,0.2883669]
[1644215462942,0.11472845,42804.0,42801.0,0.12934458]
[1644215463741,0.11472845,42804.0,42801.0,0.12434458]
[1644215463943,0.08772845,42804.0,42801.0,0.12434458]
[1644215464143,0.05,42803.0,42801.0,0.12434458]
[1644215464345,0.05,42803.0,42801.0,0.05]
[1644215464790,0.068,42803.0,42801.0,0.05]
[1644215464992,0.018,42803.0,42801.0,0.05]
[1644215465390,0.018,42803.0,42802.0,0.20601403]
[1644215465989,0.08836119,42804.0,42802.0,0.20601403]
[1644215466592,0.08772845,42804.0,42802.0,0.20601403]
[1644215466790,0.10572845,42804.0,42802.0,0.20601403]
[1644215467390,0.05,42803.0,42802.0,0.20601403]
[1644215467794,0.10572845,42804.0,42802.0,0.20601403]
[1644215467992,0.08772845,42804.0,42802.0,0.20601403]
[1644215468836,0.10572845,42804.0,42802.0,0.20601403]
[1644215469641,0.10572845,42804.0,42799.0,0.19995133]
[1644215469838,0.10601021,42804.0,42798.0,0.24995133]
[1644215470139,0.08801021,42804.0,42798.0,0.24995133]
[1644215470337,0.08772845,42804.0,42798.0,0.24995133]
[1644215470539,0.08791835,42804.0,42799.0,0.19995133]
[1644215470738,0.10291835,42804.0,42799.0,0.19995133]
[1644215471341,0.10272845,42804.0,42799.0,0.19995133]
[1644215471642,0.10291835,42804.0,42801.0,0.19995133]
[1644215472092,0.19246293,42803.0,42801.0,0.19995133]
[1644215472689,0.19246293,42803.0,42802.0,0.19995133]
[1644215472892,0.01628176,42803.0,42802.0,0.19995133]
[1644215473090,0.016,42803.0,42802.0,0.19995133]
[1644215473890,0.016,42803.0,42801.0,0.25218885]
[1644215474190,0.08772845,42804.0,42801.0,0.25018885]
[1644215474389,0.08772845,42804.0,42803.0,0.19988592]
[1644215474790,0.10672845,42804.0,42803.0,0.19988592]
[1644215476042,0.08772845,42804.0,42803.0,0.47046469]
[1644215476542,0.08772845,42804.0,42803.0,0.19988592]
[1644215476743,0.10572845,42804.0,42803.0,0.19988592]
[1644215477544,0.10572845,42804.0,42800.0,0.28381841]
[1644215477743,0.10601021,42804.0,42803.0,0.19990216]
[1644215477942,0.08772845,42804.0,42803.0,0.19990216]
[1644215478342,0.08772845,42804.0,42803.0,0.47385377]
[1644215478843,0.10472845,42804.0,42803.0,0.47385377]
[1644215479488,0.10472845,42804.0,42803.0,0.19990216]
[1644215480086,0.08772845,42804.0,42803.0,0.19990216]
[1644215480883,0.10772845,42804.0,42803.0,0.53411717]
[1644215481085,0.00028176,42809.0,42804.0,0.78249463]
[1644215481286,0.20024981,42813.0,42808.0,0.19980711]
[1644215481287,0.00028176,42810.0,42808.0,0.19980711]
[1644215481486,0.00028176,42812.0,42809.0,0.27697693]
[1644215481683,0.00028176,42813.0,42809.0,0.27697693]
[1644215481883,0.20024981,42816.0,42809.0,0.27697693]
[1644215481884,0.00028176,42815.0,42811.0,0.08962783]
[1644215482088,0.00028176,42813.0,42811.0,0.08962783]
[1644215482285,0.00028176,42815.0,42811.0,0.08962783]
[1644215482485,0.00063274,42815.0,42812.0,0.2693519]
[1644215482687,0.0009145,42815.0,42812.0,0.3193519]
[1644215482885,0.00063274,42815.0,42812.0,0.3193519]
[1644215483086,0.00063274,42815.0,42812.0,0.26913004]
[1644215483334,0.19415426,42817.0,42812.0,0.26913004]
[1644215483535,0.19415426,42817.0,42811.0,0.006]
[1644215483735,0.19443602,42817.0,42811.0,0.006]
[1644215483935,0.19415426,42817.0,42811.0,0.006]
[1644215484136,0.24443602,42817.0,42809.0,0.47397556]
[1644215484738,0.24443602,42817.0,42809.0,0.47897556]
[1644215484937,0.24415426,42817.0,42809.0,0.27916845]
[1644215485339,0.24415426,42817.0,42809.0,0.47897556]
[1644215485536,0.24415426,42817.0,42809.0,0.27916845]
[1644215485739,0.24415426,42817.0,42809.0,0.47897556]
[1644215485939,0.24415426,42817.0,42809.0,0.005]
[1644215486138,0.00063157,42815.0,42808.0,0.19980711]
[1644215486339,0.00063157,42815.0,42807.0,0.43462245]
[1644215486638,0.00063157,42815.0,42807.0,0.23481534]
[1644215487090,0.00028176,42816.0,42806.0,0.19980711]
[1644215487390,0.00063157,42813.0,42806.0,0.19980711]
[1644215488189,0.00028176,42816.0,42806.0,0.19980711]
[1644215488389,0.00063157,42812.0,42805.0,0.7371552]
[1644215488989,0.00063157,42812.0,42806.0,1.19980711]
[1644215489390,0.00028176,42814.0,42806.0,1.19980711]
[1644215489591,0.00063157,42811.0,42806.0,1.0]
[1644215489789,0.0468,42810.0,42806.0,1.0]
[1644215490190,0.04708176,42810.0,42806.0,1.0]
[1644215490390,0.22129112,42807.0,42806.0,1.0]
[1644215490594,0.27129112,42807.0,42806.0,1.0]
[1644215490834,0.34532533,42815.0,42813.0,0.24621078]
[1644215491035,0.38618054,42814.0,42813.0,0.24621078]
[1644215492235,0.43618054,42814.0,42813.0,0.24621078]
[1644215492437,0.53618054,42814.0,42813.0,0.24621078]
[1644215492634,0.76618054,42814.0,42813.0,0.24621078]
[1644215492836,0.78118054,42814.0,42813.0,0.24621078]
[1644215493536,0.98133801,42814.0,42813.0,0.24621078]
[1644215493735,0.83133801,42814.0,42813.0,0.24621078]
[1644215493934,0.63118054,42814.0,42813.0,0.24621078]
[1644215494137,0.396752,42814.0,42813.0,0.24621078]
[1644215494338,0.23,42814.0,42813.0,0.24621078]
[1644215494788,0.243,42814.0,42813.0,0.24621078]
[1644215496590,0.23,42814.0,42813.0,0.24621078]
[1644215496790,0.246,42814.0,42813.0,0.24621078]
[1644215497991,0.23,42814.0,42813.0,0.24621078]
[1644215498639,0.28,42814.0,42813.0,0.24621078]
[1644215498835,0.295,42814.0,42813.0,0.24621078]
[1644215500038,0.28,42814.0,42813.0,0.24621078]
[1644215500641,0.53461341,42814.0,42813.0,0.24621078]
[1644215500941,0.76636541,42814.0,42813.0,0.24621078]
[1644215501143,0.511752,42814.0,42813.0,0.24621078]
[1644215501993,0.71190005,42814.0,42813.0,0.24621078]
[1644215502788,0.70890005,42814.0,42813.0,0.24621078]
[1644215503587,0.508752,42814.0,42813.0,0.24621078]
[1644215504190,0.496752,42814.0,42813.0,0.24621078]
[1644215504791,0.510752,42814.0,42813.0,0.24621078]
[1644215506139,0.346752,42814.0,42813.0,0.24621078]
[1644215506941,0.360752,42814.0,42813.0,0.24621078]
[1644215507540,0.560752,42814.0,42813.0,0.24621078]
[1644215507739,0.460752,42814.0,42813.0,0.24621078]
[1644215507940,0.560752,42814.0,42813.0,0.24621078]
[1644215508240,0.546752,42814.0,42813.0,0.24621078]
[1644215508839,0.559752,42814.0,42813.0,0.24621078]
[1644215510089,0.81529951,42814.0,42813.0,0.24621078]
[1644215510292,0.79693706,42814.0,42813.0,0.24621078]
[1644215510490,1.131752,42814.0,42813.0,0.24621078]
[1644215510691,1.43208843,42814.0,42813.0,0.24621078]
[1644215510891,1.143752,42814.0,42813.0,0.24621078]
[1644215511090,1.143752,42814.0,42813.0,0.24121078]
[1644215511291,1.22352487,42814.0,42813.0,0.21154044]
[1644215512090,1.21152487,42814.0,42813.0,0.21154044]
[1644215512491,1.37837887,42814.0,42813.0,0.21154044]
[1644215512892,1.39037887,42814.0,42813.0,0.21154044]
[1644215514143,1.32837887,42814.0,42813.0,0.21154044]
[1644215514344,1.26994987,42814.0,42813.0,0.21154044]
[1644215514741,1.57024732,42814.0,42813.0,0.21154044]
[1644215514941,1.58524732,42814.0,42813.0,0.21154044]
[1644215515144,1.50547445,42814.0,42813.0,0.21154044]
[1644215516142,1.49047445,42814.0,42813.0,0.21154044]
[1644215516342,1.190177,42814.0,42813.0,0.21154044]
[1644215516848,0.56316877,42814.0,42813.0,0.21154044]
[1644215517490,0.312952,42814.0,42813.0,0.21154044]
[1644215518288,0.299952,42814.0,42813.0,0.21154044]
[1644215518888,0.322952,42814.0,42813.0,0.21154044]
[1644215519093,0.52311704,42814.0,42813.0,0.21154044]
[1644215519492,0.322952,42814.0,42813.0,0.21154044]
[1644215520289,0.399952,42814.0,42813.0,0.04665059]
[1644215520493,0.60012156,42814.0,42813.0,0.04665059]
[1644215521044,0.57312156,42814.0,42813.0,0.04665059]
[1644215521241,0.322952,42814.0,42813.0,0.04665059]
[1644215522640,0.299952,42814.0,42813.0,0.04665059]
[1644215522841,0.371952,42814.0,42813.0,0.04665059]
[1644215523041,0.421952,42814.0,42813.0,0.04665059]
[1644215523241,0.62211542,42814.0,42813.0,0.04665059]
[1644215524043,0.60011542,42814.0,42813.0,0.04665059]
[1644215524889,0.71711542,42814.0,42813.0,0.04665059]
[1644215525491,0.516952,42814.0,42813.0,0.04665059]
[1644215526189,0.499952,42814.0,42813.0,0.04665059]
[1644215526789,0.516952,42814.0,42813.0,0.04665059]
[1644215528093,0.499952,42814.0,42813.0,0.04665059]
[1644215528340,0.399952,42814.0,42813.0,0.04665059]
[1644215528539,0.499952,42814.0,42813.0,0.04665059]
[1644215528939,0.516952,42814.0,42813.0,0.04665059]
[1644215529842,0.76715627,42814.0,42813.0,0.04665059]
[1644215530040,0.75015627,42814.0,42813.0,0.04665059]
[1644215530640,0.79695627,42814.0,42813.0,0.04665059]
[1644215530841,0.81395627,42814.0,42813.0,0.04665059]
[1644215531041,0.563752,42814.0,42813.0,0.04665059]
[1644215531640,0.81396992,42814.0,42813.0,0.04665059]
[1644215532092,0.79696992,42814.0,42813.0,0.04665059]
[1644215532897,0.563752,42814.0,42813.0,0.04665059]
[1644215534197,0.546752,42814.0,42813.0,0.04665059]
[1644215534998,0.560752,42814.0,42813.0,0.04665059]
[1644215536139,0.546752,42814.0,42813.0,0.04665059]
[1644215536942,0.559752,42814.0,42813.0,0.04665059]
[1644215537645,0.70997932,42814.0,42813.0,0.04665059]
[1644215537843,0.80997932,42814.0,42813.0,0.04665059]
[1644215538042,0.66317932,42814.0,42813.0,0.04665059]
[1644215538242,0.65017932,42814.0,42813.0,0.04665059]
[1644215538843,0.66317932,42814.0,42813.0,0.04665059]
[1644215539505,0.76022776,42814.0,42813.0,0.04665059]
[1644215540091,0.74722776,42814.0,42813.0,0.04665059]
[1644215540893,0.559752,42814.0,42813.0,0.04665059]
[1644215541396,0.76318422,42814.0,42813.0,0.04665059]
[1644215542091,1.02611636,42814.0,42813.0,0.04665059]
[1644215542897,0.77588414,42814.0,42813.0,0.04665059]
[1644215544143,0.76288414,42814.0,42813.0,0.04665059]
[1644215544545,1.01311636,42814.0,42813.0,0.04665059]
[1644215545046,0.92611636,42814.0,42813.0,0.0465851]
[1644215545245,0.77588414,42814.0,42813.0,0.0465851]
[1644215545448,1.12292926,42814.0,42813.0,0.0465851]
[1644215546244,1.10992926,42814.0,42813.0,0.0465851]
[1644215546445,0.80968414,42814.0,42813.0,0.0465851]
[1644215546646,1.11001854,42814.0,42813.0,0.0465851]
[1644215547096,0.560752,42814.0,42813.0,0.0465851]
[1644215547998,0.8610864,42814.0,42813.0,0.0465851]
[1644215548194,0.8470864,42814.0,42813.0,0.0465851]
[1644215548395,1.06797243,42814.0,42813.0,0.0465851]
[1644215548597,0.76763803,42814.0,42813.0,0.0465851]
[1644215548797,1.06797243,42814.0,42813.0,0.0465851]
[1644215549199,1.08097243,42814.0,42813.0,0.0465851]
[1644215550296,1.06797243,42814.0,42813.0,0.0465851]
[1644215550942,1.08197243,42814.0,42813.0,0.0465851]
[1644215551140,0.78163803,42814.0,42813.0,0.0465851]
[1644215552140,0.76763803,42814.0,42813.0,0.0465851]
[1644215552940,0.78263803,42814.0,42813.0,0.0465851]
[1644215554242,0.76763803,42814.0,42813.0,0.0465851]
[1644215554695,1.06505806,42814.0,42813.0,0.0465851]
[1644215555098,1.08005806,42814.0,42813.0,0.0465851]
[1644215556296,1.06505806,42814.0,42813.0,0.0465851]
[1644215557099,1.07805806,42814.0,42813.0,0.0465851]
[1644215558343,1.06505806,42814.0,42813.0,0.0465851]
[1644215558945,1.08005806,42814.0,42813.0,0.0465851]
[1644215562189,1.06505806,42814.0,42813.0,0.0465851]
[1644215562991,1.07905806,42814.0,42813.0,0.0465851]
[1644215563993,0.560752,42814.0,42813.0,0.0465851]
[1644215564194,0.84713495,42814.0,42813.0,0.0465851]
[1644215564993,1.09484538,42814.0,42813.0,0.0465851]
[1644215565195,1.06191604,42814.0,42813.0,0.0465851]
[1644215565395,1.06191604,42814.0,42813.0,0.04646727]
[1644215565841,0.96191604,42814.0,42813.0,0.04646727]
[1644215566042,0.72720561,42814.0,42813.0,0.04646727]
[1644215566241,0.71420561,42814.0,42813.0,0.04646727]
[1644215567042,0.92048645,42814.0,42813.0,0.04646727]
[1644215567243,1.02048645,42814.0,42813.0,0.04646727]
[1644215568043,0.82920561,42814.0,42813.0,0.04646727]
[1644215568243,0.546752,42814.0,42813.0,0.04646727]
[1644215568644,0.81407226,42814.0,42813.0,0.04646727]
[1644215569047,1.02944699,42814.0,42813.0,0.04646727]
[1644215570489,1.01644699,42814.0,42813.0,0.04646727]
[1644215570893,1.36688569,42814.0,42813.0,0.04646727]
[1644215571091,1.37988569,42814.0,42813.0,0.04646727]
[1644215571296,1.09371736,42814.0,42806.0,1.0]
[1644215571494,0.30878842,42807.0,42806.0,1.0]
[1644215571695,0.29715417,42807.0,42806.0,1.0]
[1644215571891,0.1968,42807.0,42806.0,1.0]
[1644215572791,0.0968,42807.0,42806.0,1.0]
[1644215572991,0.36013762,42807.0,42806.0,1.0]
[1644215573443,0.51857062,42807.0,42806.0,1.0]
[1644215573643,0.74512027,42807.0,42806.0,1.0]
[1644215574443,0.73212027,42807.0,42806.0,1.0]
[1644215575045,0.74512027,42807.0,42806.0,1.0]
[1644215575646,0.49478265,42807.0,42806.0,1.0]
[1644215576245,0.48178265,42807.0,42806.0,1.0]
[1644215576847,0.7321091,42807.0,42806.0,1.0]
[1644215577088,0.8140611,42807.0,42806.0,1.0]
[1644215578088,0.58751145,42807.0,42806.0,1.0]
[1644215578290,0.44712645,42807.0,42806.0,1.0]
[1644215578492,0.1968,42807.0,42806.0,1.0]
[1644215578892,0.0968,42807.0,42806.0,1.0]
[1644215579091,0.1088,42807.0,42806.0,1.0]
[1644215580292,0.0968,42807.0,42806.0,1.0]
[1644215580745,0.29703967,42807.0,42806.0,1.0]
[1644215580940,0.25023967,42807.0,42806.0,1.0]
[1644215581141,0.27123967,42807.0,42806.0,1.0]
[1644215582342,0.25023967,42807.0,42806.0,1.0]
[1644215583144,0.27123967,42807.0,42806.0,1.0]
[1644215584346,0.25023967,42807.0,42806.0,1.0]
[1644215584998,0.27123967,42807.0,42806.0,1.0]
[1644215585793,0.25879157,42807.0,42806.0,1.0]
[1644215586293,0.0375519,42807.0,42806.0,1.0]
[1644215586695,0.05,42808.0,42806.0,1.0]
[1644215586895,0.30032645,42808.0,42806.0,1.0]
[1644215587194,0.021,42807.0,42806.0,1.0]
[1644215587397,0.071,42807.0,42806.0,1.0]
[1644215587595,0.021,42807.0,42806.0,1.0]
[1644215588443,0.45032645,42808.0,42806.0,1.0]
[1644215588644,0.45032645,42808.0,42807.0,0.05]
[1644215589044,0.47132645,42808.0,42807.0,0.05]
[1644215590245,0.45032645,42808.0,42807.0,0.05]
[1644215591048,0.51712645,42808.0,42807.0,0.05]
[1644215591848,0.46546411,42808.0,42807.0,0.05]
[1644215592093,0.71580176,42808.0,42807.0,0.05]
[1644215592292,0.44546411,42808.0,42806.0,1.0]
[1644215592500,0.25033805,42807.0,42806.0,1.0]
[1644215592694,0.29713805,42807.0,42806.0,1.0]
[1644215593093,0.0668,42807.0,42806.0,1.0]
[1644215593291,0.31714389,42807.0,42806.0,1.0]
[1644215593493,0.44051652,42807.0,42806.0,1.0]
[1644215593696,0.60077788,42807.0,42806.0,0.41693098]
[1644215593894,0.75,42806.0,42799.0,0.00020889]
[1644215594095,0.75,42806.0,42794.0,0.38548172]
[1644215594096,0.2002957,42800.0,42798.0,0.00020889]
[1644215594294,0.24709711,42799.0,42795.0,0.00020889]
[1644215594493,0.0468,42798.0,42794.0,0.04020889]
[1644215594692,0.069952,42797.0,42794.0,0.04020889]
[1644215594893,0.0468,42796.0,42794.0,0.04020889]
[1644215595094,0.0468,42796.0,42794.0,0.04]
[1644215596045,0.079952,42795.0,42794.0,0.04]
[1644215596247,0.166752,42795.0,42794.0,0.04]
[1644215596647,0.216752,42795.0,42794.0,0.04]
[1644215597046,0.1608,42795.0,42794.0,0.04]